bitfinex/quotes_BTCUSD_20251010
["timestamp","ask_amount","ask_price","bid_price","bid_amount"]
[1760125851421,1.0702583,117150.0,117140.0,0.15258147]
[1760125851634,1.0772383,117150.0,117140.0,0.10360147]
[1760125851862,2.0320478,117150.0,117140.0,0.10360147]
[1760125852055,1.1844037,117150.0,117140.0,0.10360147]
[1760125852277,1.1844037,117150.0,117140.0,0.15258147]
[1760125852278,0.39878125,117150.0,117140.0,0.15258147]
[1760125852486,1.09318125,117150.0,117140.0,0.21826147]
[1760125852697,1.09318125,117150.0,117140.0,0.2187246]
[1760125852948,0.39878125,117150.0,117140.0,0.48606047]
[1760125853167,0.73738125,117150.0,117140.0,0.3153246]
[1760125853796,0.73738125,117150.0,117140.0,0.2187246]
[1760125854010,0.74400125,117150.0,117140.0,0.1040646]
[1760125854234,1.54906535,117150.0,117140.0,0.1040646]
[1760125854473,0.78694125,117150.0,117140.0,0.1040646]
[1760125854680,0.74400125,117150.0,117140.0,0.1040646]
[1760125855423,0.48770125,117150.0,117140.0,0.1040646]
[1760125855655,0.64846125,117150.0,117140.0,0.23348924]
[1760125855862,1.09318125,117150.0,117140.0,0.21831478]
[1760125856065,1.14219125,117150.0,117140.0,0.10365478]
[1760125856274,0.39878125,117150.0,117140.0,0.10365478]
[1760125856474,1.09318125,117150.0,117140.0,0.21831478]
[1760125856964,1.09976125,117150.0,117140.0,0.15263478]
[1760125857180,2.0320078,117150.0,117140.0,0.10365478]
[1760125857318,1.23458224,117150.0,117140.0,0.10365478]
[1760125857530,7.13548775,117150.0,117140.0,0.10365478]
[1760125857728,6.28458224,117150.0,117140.0,0.10365478]
[1760125857957,6.63782684,117150.0,117140.0,0.10365478]
[1760125858563,5.92054079,117150.0,117140.0,0.10265478]
[1760125858743,5.92054079,117150.0,117140.0,0.10165478]
[1760125858744,6.61490079,117150.0,117140.0,0.10165478]
[1760125858941,5.92054079,117150.0,117140.0,0.10165478]
[1760125859149,6.61490079,117150.0,117140.0,0.10165478]
[1760125859382,6.61490079,117150.0,117140.0,0.11182026]
[1760125859383,0.37833669,117150.0,117140.0,0.11182026]
[1760125859599,0.37833669,117150.0,117140.0,0.15898026]
[1760125859600,0.71689669,117150.0,117140.0,0.15898026]
[1760125859803,0.36253669,117150.0,117140.0,0.14881478]
[1760125860029,1.05689669,117150.0,117140.0,0.14881478]
[1760125860201,0.96797669,117150.0,117140.0,0.14881478]
[1760125860397,1.05689669,117150.0,117140.0,0.14881478]
[1760125860606,0.36253669,117150.0,117140.0,0.31955065]
[1760125860814,0.36253669,117150.0,117140.0,0.52765645]
[1760125860815,0.10483669,117150.0,117140.0,0.52765645]
[1760125861019,0.35447669,117150.0,117140.0,0.52765645]
[1760125861442,0.01591669,117150.0,117140.0,0.52765645]
[1760125861647,0.38535966,117150.0,117140.0,0.52765645]
[1760125862273,0.38535966,117150.0,117140.0,0.30317478]
[1760125862274,0.36243361,117150.0,117140.0,0.30317478]
[1760125862479,0.36905361,117150.0,117140.0,0.10265478]
[1760125862684,6.62998376,117150.0,117140.0,0.10265478]
[1760125862860,6.81124049,117150.0,117140.0,0.10265478]
[1760125863112,6.92563484,117150.0,117140.0,0.10265478]
[1760125863361,6.96478185,117150.0,117140.0,0.10222478]
[1760125863585,7.06478184,117150.0,117140.0,0.10322478]
[1760125863798,7.06591474,117150.0,117140.0,0.10322478]
[1760125864010,7.08087983,117150.0,117140.0,0.05701787]
[1760125864226,7.75736471,117150.0,117140.0,0.05701787]
[1760125864446,7.8420383,117150.0,117140.0,0.05701787]
[1760125864652,7.8420383,117150.0,117090.0,0.0004]
[1760125864653,1.1450641,117100.0,117090.0,0.0004]
[1760125864862,1.89830079,117100.0,117090.0,0.0004]
[1760125865074,6.8929941,117100.0,117090.0,0.0004]
[1760125865287,7.04679008,117100.0,117090.0,0.0004]
[1760125865713,7.21758427,117100.0,117090.0,0.0004]
[1760125865931,7.21758427,117100.0,117090.0,0.00190325]
[1760125866147,6.35235008,117100.0,117090.0,0.00290325]
[1760125866357,7.13103253,117100.0,117090.0,0.00290325]
[1760125866537,7.21758427,117100.0,117090.0,0.00290325]
[1760125866953,6.35235008,117100.0,117090.0,0.00290325]
[1760125867216,6.24176598,117100.0,117090.0,0.00290325]
[1760125867422,7.04683008,117100.0,117090.0,0.00290325]
[1760125867696,7.30186672,117100.0,117090.0,0.00290325]
[1760125868591,7.30186672,117100.0,117090.0,0.00190325]
[1760125868803,7.65782672,117100.0,117090.0,0.00090325]
[1760125869017,7.65882672,117100.0,117090.0,0.00090325]
[1760125869231,6.43759253,117100.0,117090.0,0.00090325]
[1760125869451,6.73659253,117100.0,117090.0,0.00090325]
[1760125869650,7.78703253,117100.0,117090.0,0.00090325]
[1760125869869,7.06707818,117100.0,117090.0,0.00090325]
[1760125870082,5.57943408,117100.0,117090.0,0.00090325]
[1760125870301,5.57943408,117100.0,117090.0,0.06125325]
[1760125870302,0.52244408,117100.0,117090.0,0.06125325]
[1760125870529,0.72920408,117100.0,117090.0,0.37323202]
[1760125870759,1.06920408,117100.0,117090.0,0.20242325]
[1760125870974,0.04173408,117100.0,117090.0,0.00090325]
[1760125871194,0.72924408,117100.0,117090.0,0.10841325]
[1760125871407,0.72924408,117100.0,117090.0,0.37323202]
[1760125871632,0.03468408,117100.0,117090.0,0.37323202]
[1760125871852,0.04288,117120.0,117100.0,0.17932968]
[1760125871853,5.05,117120.0,117100.0,0.17932968]
[1760125872077,0.03529415,117120.0,117110.0,0.20152]
[1760125872291,0.26484,117120.0,117110.0,0.38083858]
[1760125872507,0.26484,117120.0,117110.0,0.20152]
[1760125873153,0.26484,117120.0,117110.0,0.10751]
[1760125873404,1.1549138,117120.0,117100.0,0.04716]
[1760125873640,0.3498497,117120.0,117100.0,0.04716]
[1760125873855,0.34,117110.0,117090.0,0.04806325]
[1760125874062,0.24964,117100.0,117090.0,0.04806325]
[1760125874496,0.29252,117100.0,117090.0,0.04806325]
[1760125874732,0.29252,117100.0,117090.0,0.00090325]
[1760125874960,0.24964,117100.0,117090.0,0.27922202]
[1760125875178,0.38288,117110.0,117090.0,0.04806325]
[1760125875405,0.69452,117100.0,117090.0,0.00090325]
[1760125875628,0.0355097,117120.0,117100.0,0.37231419]
[1760125875845,0.08896,117110.0,117100.0,0.33837677]
[1760125876076,0.2042,117110.0,117100.0,0.33837677]
[1760125876499,0.35592,117130.0,117120.0,0.17076502]
[1760125876714,0.04578,117150.0,117130.0,0.17074934]
[1760125876936,0.3386,117140.0,117130.0,0.14117]
[1760125877147,0.3386,117140.0,117130.0,0.10751]
[1760125877362,0.6786,117140.0,117130.0,0.10751]
[1760125877574,0.6786,117140.0,117130.0,0.04716]
[1760125877781,1.4907141,117140.0,117120.0,0.04716]
[1760125877993,1.4907141,117140.0,117130.0,0.37277369]
[1760125877994,0.34,117140.0,117130.0,0.37277369]
[1760125878199,0.6786,117140.0,117130.0,0.20202325]
[1760125879039,0.6786,117140.0,117130.0,0.04766325]
[1760125879458,1.8891141,117140.0,117130.0,0.00050325]
[1760125879675,6.9391141,117140.0,117130.0,0.00050325]
[1760125879883,7.02335655,117140.0,117130.0,0.00050325]
[1760125880932,7.02625655,117140.0,117130.0,0.00050325]
[1760125881135,0.00035241,117110.0,117100.0,0.04716]
[1760125881340,0.33941535,117110.0,117100.0,0.10251]
[1760125881755,0.00085535,117110.0,117100.0,0.10251]
[1760125881966,0.33941535,117110.0,117100.0,0.19652]
[1760125882390,0.00085535,117110.0,117100.0,0.41542241]
[1760125882597,0.00085535,117110.0,117100.0,1.22148651]
[1760125882598,0.25045535,117110.0,117100.0,1.22148651]
[1760125882816,0.09186,117140.0,117130.0,0.17075044]
[1760125883040,0.34146,117140.0,117130.0,0.37242102]
[1760125883472,0.2525,117140.0,117130.0,0.37242102]
[1760125883689,0.2525,117140.0,117130.0,0.43145435]
[1760125883690,0.34146,117140.0,117130.0,0.43145435]
[1760125884097,0.34146,117140.0,117130.0,0.26070391]
[1760125884317,0.34146,117140.0,117130.0,0.00015058]
[1760125884528,0.91772278,117140.0,117130.0,0.00015058]
[1760125884740,0.34142,117140.0,117130.0,0.00015058]
[1760125885171,0.34142,117140.0,117130.0,0.20167058]
[1760125885598,0.34142,117140.0,117130.0,0.10766058]
[1760125886247,0.0029,117140.0,117130.0,0.32037056]
[1760125886462,0.0029,117140.0,117130.0,0.41438056]
[1760125886686,0.20802,117140.0,117130.0,0.41438056]
[1760125887339,0.20802,117140.0,117130.0,0.37242102]
[1760125887546,0.25246,117140.0,117130.0,0.37242102]
[1760125887758,0.0029,117140.0,117130.0,0.9474338]
[1760125887968,0.25246,117140.0,117130.0,0.37242102]
[1760125888179,0.25246,117140.0,117130.0,0.9474338]
[1760125888405,0.25246,117140.0,117130.0,0.20167058]
[1760125888897,0.25246,117140.0,117130.0,0.37242102]
[1760125889145,0.91171523,117140.0,117130.0,0.10766058]
[1760125889356,0.0029,117140.0,117130.0,0.37257102]
[1760125889569,0.1185,117140.0,117130.0,0.37257102]
[1760125889778,0.20746,117140.0,117130.0,0.37257102]
[1760125889995,0.25242,117140.0,117130.0,0.37257102]
[1760125890237,0.25242,117140.0,117130.0,0.45681347]
[1760125890682,0.0029,117140.0,117130.0,1.03182625]
[1760125890910,0.0165,117140.0,117130.0,0.45681347]
[1760125891381,0.0165,117140.0,117130.0,0.37257102]
[1760125891634,0.0165,117140.0,117130.0,0.20182058]
[1760125891879,0.0165,117140.0,117130.0,0.10866058]
[1760125892089,0.0165,117140.0,117130.0,0.00115058]
[1760125892090,0.35775,117140.0,117130.0,0.00115058]
[1760125892303,0.93210278,117140.0,117130.0,0.00115058]
[1760125892515,6.11460523,117140.0,117130.0,0.00115058]
[1760125892935,5.49605,117140.0,117130.0,0.00115058]
[1760125893140,6.07106278,117140.0,117130.0,0.00115058]
[1760125893351,6.32054278,117140.0,117130.0,0.00115058]
[1760125893563,5.65657,117140.0,117130.0,0.00115058]
[1760125893799,6.32054278,117140.0,117130.0,0.00115058]
[1760125894015,5.74553,117140.0,117130.0,0.00115058]
[1760125894235,6.32054278,117140.0,117130.0,0.00115058]
[1760125894867,5.62626278,117140.0,117130.0,0.00115058]
[1760125895096,0.0248,117150.0,117130.0,0.05111058]
[1760125895330,0.69428,117140.0,117130.0,0.11204058]
[1760125895543,1.03428,117140.0,117130.0,0.11204058]
[1760125895982,0.59073,117140.0,117130.0,0.00015058]
[1760125896263,0.58948,117140.0,117130.0,0.11104058]
[1760125896499,1.03428,117140.0,117130.0,0.11104058]
[1760125896962,0.67844,117140.0,117130.0,0.11104058]
[1760125897391,0.58948,117140.0,117130.0,0.11104058]
[1760125897615,0.67969,117140.0,117130.0,0.00015058]
[1760125898056,0.67844,117140.0,117130.0,0.11104058]
[1760125898273,0.0248,117150.0,117130.0,0.28179102]
[1760125898511,0.02630938,117160.0,117140.0,0.31385587]
[1760125898776,0.33844,117150.0,117140.0,0.22069587]
[1760125898952,0.33844,117150.0,117140.0,0.28162587]
[1760125899394,0.33844,117150.0,117140.0,0.37478587]
[1760125900105,0.97210078,117150.0,117130.0,0.05011058]
[1760125900337,0.36324,117150.0,117140.0,0.04996]
[1760125900553,0.33844,117150.0,117140.0,0.11089]
[1760125900757,0.34639869,117150.0,117140.0,0.20405]
[1760125900964,0.33844,117150.0,117140.0,0.3739304]
[1760125901175,0.24948,117150.0,117140.0,0.43340953]
[1760125901403,0.34004,117160.0,117150.0,0.17072129]
[1760125901638,0.34004,117160.0,117150.0,0.20405]
[1760125901639,0.68644016,117160.0,117150.0,0.20405]
[1760125902078,0.68640016,117160.0,117150.0,0.20309655]
[1760125902517,0.34640016,117160.0,117150.0,0.37381784]
[1760125902801,0.34640016,117160.0,117150.0,0.26841029]
[1760125903017,0.34890016,117160.0,117150.0,0.10993655]
[1760125903236,0.01050016,117160.0,117150.0,0.04996]
[1760125903451,0.34094,117160.0,117150.0,0.04996]
[1760125903672,0.92516294,117160.0,117140.0,0.04910453]
[1760125903884,0.36505,117150.0,117140.0,0.04910453]
[1760125904581,0.36505,117150.0,117140.0,0.11003453]
[1760125904582,0.34,117150.0,117140.0,0.11003453]
[1760125904824,0.00254,117160.0,117150.0,0.17072129]
[1760125905044,0.34094,117160.0,117150.0,0.37477129]
[1760125905268,0.34890068,117160.0,117150.0,0.37477129]
[1760125905961,0.01050068,117160.0,117150.0,0.37477129]
[1760125906182,0.25198,117160.0,117150.0,0.45901374]
[1760125906727,0.00254,117160.0,117150.0,1.03402652]
[1760125906972,0.34866519,117190.0,117180.0,0.17067759]
[1760125906973,0.00796219,117190.0,117180.0,0.17067759]
[1760125907210,0.00796219,117190.0,117180.0,0.94974037]
[1760125907443,0.00796219,117190.0,117180.0,0.37472759]
[1760125907658,0.00796219,117190.0,117180.0,0.40117567]
[1760125908146,0.00796219,117190.0,117180.0,0.20420058]
[1760125908352,0.34,117190.0,117180.0,0.11104058]
[1760125908568,0.94950497,117190.0,117180.0,0.00015058]
[1760125908792,1.30530497,117190.0,117180.0,0.00015058]
[1760125909012,1.43955742,117190.0,117180.0,0.00015058]
[1760125909322,6.97854039,117190.0,117180.0,0.00015058]
[1760125909551,7.29444334,117190.0,117180.0,0.00015058]
[1760125909767,7.34746043,117190.0,117180.0,0.00015058]
[1760125910212,7.36084998,117190.0,117180.0,0.00015058]
[1760125910429,7.00504998,117190.0,117180.0,0.00015058]
[1760125910653,7.69908998,117190.0,117180.0,0.00015058]
[1760125911288,6.83538696,117190.0,117180.0,0.00015058]
[1760125911492,7.69908998,117190.0,117180.0,0.00015058]
[1760125912158,6.99850451,117190.0,117180.0,0.00015058]
[1760125912413,7.61584753,117190.0,117180.0,0.00015058]
[1760125912662,7.67020155,117190.0,117180.0,0.00015058]
[1760125912854,7.66919966,117190.0,117180.0,0.00015058]
[1760125913141,7.63871273,117190.0,117180.0,0.00015058]
[1760125913346,7.85347608,117190.0,117180.0,0.00015058]
[1760125913569,7.80222477,117190.0,117180.0,0.00015058]
[1760125913796,0.3,117140.0,117130.0,0.06619503]
[1760125914010,6.12107,117140.0,117130.0,0.06634565]
[1760125914223,6.00155278,117140.0,117130.0,0.06634565]
[1760125914894,6.69559278,117140.0,117130.0,0.06634565]
[1760125915102,6.69559278,117140.0,117130.0,0.00015062]
[1760125915541,6.69663278,117140.0,117130.0,0.00015062]
[1760125916422,6.69712278,117140.0,117130.0,0.00015062]
[1760125917785,6.78136523,117140.0,117130.0,0.00015062]
[1760125917997,7.10761089,117140.0,117130.0,0.00015062]
[1760125918239,7.08136523,117140.0,117130.0,0.00015062]
[1760125918627,7.09966365,117140.0,117130.0,0.00015062]
[1760125918835,7.39966365,117140.0,117130.0,0.00015062]
[1760125919041,7.3155412,117140.0,117130.0,0.00015062]
[1760125919247,7.29724278,117140.0,117130.0,0.00015062]
[1760125920296,7.83813055,117140.0,117130.0,0.00015062]
[1760125920500,7.16222296,117140.0,117130.0,0.00015062]
[1760125920738,8.30440332,117140.0,117130.0,0.00015062]
[1760125920960,8.3964654,117140.0,117130.0,0.00015062]
[1760125921166,8.3044022,117140.0,117130.0,0.00015062]
[1760125921378,8.4202749,117140.0,117130.0,0.00015062]
[1760125921587,8.41233811,117140.0,117130.0,0.00015062]
[1760125921796,7.44754582,117140.0,117130.0,0.00015062]
[1760125922018,8.49766721,117140.0,117130.0,0.00015062]
[1760125922223,8.39766722,117140.0,117130.0,0.00015062]
[1760125922446,8.45189025,117140.0,117130.0,0.00015062]
[1760125922668,8.45193025,117140.0,117130.0,0.00015062]
[1760125922884,8.49770721,117140.0,117130.0,0.00015062]
[1760125923091,8.49870721,117140.0,117130.0,0.00015062]
[1760125923317,7.44866721,117140.0,117130.0,0.00015062]
[1760125923563,6.4936889,117140.0,117130.0,0.00015062]
[1760125923807,6.73364004,117140.0,117130.0,0.00015062]
[1760125924037,0.84177241,117140.0,117130.0,0.00015062]
[1760125924266,1.36669519,117140.0,117130.0,0.00015062]
[1760125924499,1.70569519,117140.0,117130.0,0.00015062]
[1760125924771,0.07815,117140.0,117130.0,0.00015062]
[1760125925015,0.02914,117140.0,117130.0,0.23152106]
[1760125925250,0.0011,117140.0,117130.0,0.24756116]
[1760125925484,0.2515,117140.0,117130.0,0.4183116]
[1760125925712,0.2515,117140.0,117130.0,0.00015062]
[1760125925713,0.91596278,117140.0,117130.0,0.00015062]
[1760125925996,0.2505,117140.0,117130.0,0.20267062]
[1760125926226,0.33946,117140.0,117130.0,0.20267062]
[1760125926466,0.33946,117140.0,117130.0,0.37342106]
[1760125926467,0.0011,117140.0,117130.0,0.37342106]
[1760125926719,0.09006,117140.0,117130.0,0.20267062]
[1760125926952,0.33946,117140.0,117130.0,0.24467599]
[1760125927211,0.0011,117140.0,117130.0,0.24567599]
[1760125927425,0.33946,117140.0,117130.0,0.37442106]
[1760125927633,0.33946,117140.0,117130.0,0.37542106]
[1760125928292,0.0011,117140.0,117130.0,0.10939062]
[1760125928750,0.33942,117140.0,117130.0,0.37542106]
[1760125928989,1.30393278,117140.0,117130.0,0.00215062]
[1760125929206,1.25492278,117140.0,117130.0,0.00215062]
[1760125929417,1.30393278,117140.0,117130.0,0.00215062]
[1760125929637,1.65981278,117140.0,117130.0,0.00215062]
[1760125929873,1.95981278,117140.0,117130.0,0.00215062]
[1760125930093,1.65707378,117140.0,117130.0,0.00215062]
[1760125930530,1.3837,117140.0,117130.0,0.00215062]
[1760125930736,1.95871278,117140.0,117130.0,0.00215062]
[1760125931214,1.65871278,117140.0,117130.0,0.00215062]
[1760125931437,0.20119639,117180.0,117130.0,0.00215062]
[1760125931438,0.3,117180.0,117130.0,0.96750888]
[1760125931654,0.3,117180.0,117160.0,0.17070672]
[1760125931655,5.05,117170.0,117160.0,0.17070672]
[1760125931853,0.90156278,117190.0,117160.0,0.38176205]
[1760125932061,0.08896,117170.0,117160.0,0.10724]
[1760125932274,0.08896,117170.0,117160.0,0.37322672]
[1760125932518,0.08896,117170.0,117160.0,0.20252]
[1760125932723,0.42896,117170.0,117160.0,0.04662]
[1760125932925,0.08896,117170.0,117160.0,0.04662]
[1760125933133,0.08896,117170.0,117160.0,0.10724]
[1760125933336,0.67832,117170.0,117160.0,0.10724]
[1760125933557,0.34,117170.0,117160.0,0.10724]
[1760125933787,0.24936,117170.0,117160.0,0.43228349]
[1760125933999,0.33832,117170.0,117160.0,0.41521282]
[1760125934431,0.001,117180.0,117160.0,0.41521282]
[1760125934649,0.73825679,117190.0,117170.0,0.31259215]
[1760125934872,0.02896866,117200.0,117180.0,0.20252]
[1760125935118,0.33828,117190.0,117180.0,0.27790432]
[1760125935337,0.33828,117190.0,117180.0,0.10724]
[1760125935767,0.33828,117190.0,117180.0,0.20252]
[1760125935972,0.33828,117190.0,117180.0,0.20267062]
[1760125936421,0.33828,117190.0,117180.0,0.10739062]
[1760125936631,0.33828,117190.0,117180.0,0.37334821]
[1760125936850,0.33828,117190.0,117180.0,0.40789588]
[1760125937762,0.02905138,117200.0,117180.0,0.40789588]
[1760125937967,0.33824,117190.0,117180.0,0.20267062]
[1760125938173,0.33824,117190.0,117180.0,0.37334821]
[1760125939106,0.02905138,117200.0,117190.0,0.17066302]
[1760125939309,0.10718978,117210.0,117200.0,0.17063553]
[1760125939521,0.36198428,117210.0,117200.0,0.19048245]
[1760125939735,0.36198428,117210.0,117200.0,0.10724]
[1760125940429,0.36198428,117210.0,117200.0,0.10624]
[1760125940430,0.02378428,117210.0,117200.0,0.10624]
[1760125940636,0.3382,117210.0,117200.0,0.10624]
[1760125940846,0.36198428,117210.0,117200.0,0.10624]
[1760125941055,0.36198428,117210.0,117200.0,0.04662]
[1760125941693,0.36173894,117210.0,117200.0,0.04662]
[1760125941906,0.36303566,117210.0,117200.0,0.04562]
[1760125942113,0.39190018,117210.0,117200.0,0.10624]
[1760125942339,0.07296996,117210.0,117200.0,0.4140487]
[1760125942562,0.07296996,117210.0,117190.0,0.21728207]
[1760125942563,0.99208296,117210.0,117190.0,0.21728207]
[1760125942831,0.07396996,117210.0,117200.0,0.20252]
[1760125943027,0.39386018,117210.0,117200.0,0.20252]
[1760125943256,0.07396996,117210.0,117200.0,0.20252]
[1760125943474,0.39286018,117210.0,117200.0,0.24450021]
[1760125943680,0.41112996,117210.0,117200.0,0.24450021]
[1760125943887,0.41212996,117210.0,117200.0,0.24450021]
[1760125944341,0.39651906,117210.0,117200.0,0.10724]
[1760125944988,0.05835906,117210.0,117200.0,0.10724]
[1760125945211,0.03908928,117210.0,117200.0,0.37316846]
[1760125945501,0.01022476,117210.0,117200.0,0.37316846]
[1760125945724,0.2525,117210.0,117200.0,0.37316846]
[1760125945938,0.16354,117210.0,117200.0,0.45741091]
[1760125946577,0.16354,117210.0,117200.0,0.48756281]
[1760125946578,0.0033,117210.0,117200.0,0.48756281]
[1760125946817,0.0033,117210.0,117200.0,1.37535608]
[1760125947032,0.0033,117210.0,117200.0,1.71535608]
[1760125947483,0.0033,117210.0,117200.0,0.93568486]
[1760125947701,0.0033,117210.0,117200.0,1.98951607]
[1760125948361,0.0033,117210.0,117200.0,0.93568486]
[1760125948580,0.0033,117210.0,117200.0,0.82644242]
[1760125949237,0.18572705,117230.0,117220.0,0.17061934]
[1760125949238,0.07948705,117230.0,117220.0,0.17061934]
[1760125949455,0.28952705,117230.0,117220.0,0.37412934]
[1760125949664,0.25900908,117230.0,117220.0,0.37412934]
[1760125950537,0.25951273,117230.0,117220.0,0.37412934]
[1760125950759,0.25951273,117230.0,117220.0,0.45837179]
[1760125950969,0.26051273,117230.0,117220.0,0.45837179]
[1760125951381,0.2910307,117230.0,117220.0,0.45837179]
[1760125951589,0.29102803,117230.0,117220.0,0.45837179]
[1760125951808,0.26151006,117230.0,117220.0,0.20351]
[1760125952026,0.29202803,117230.0,117220.0,0.20351]
[1760125952229,0.39718248,117230.0,117220.0,0.37412934]
[1760125952437,0.44295944,117230.0,117220.0,0.37412934]
[1760125952857,0.39718248,117230.0,117220.0,0.20351]
[1760125953108,0.44295944,117230.0,117220.0,0.11108]
[1760125953309,0.44295944,117230.0,117220.0,0.20351]
[1760125953514,0.41244147,117230.0,117220.0,0.24570635]
[1760125953720,0.42828941,117230.0,117220.0,0.20351]
[1760125953925,0.42828941,117230.0,117220.0,0.37412934]
[1760125954349,0.09028941,117230.0,117220.0,0.37412934]
[1760125954574,0.33936941,117230.0,117220.0,0.37412934]
[1760125954765,0.36980545,117230.0,117220.0,0.37412934]
[1760125954969,0.36980905,117230.0,117220.0,0.43338762]
[1760125955807,0.03043991,117250.0,117240.0,0.17059024]
[1760125956031,0.27947991,117250.0,117240.0,0.20366062]
[1760125956253,0.27947991,117250.0,117240.0,0.11123062]
[1760125956466,0.27947991,117250.0,117240.0,0.04797062]
[1760125956467,1.07494121,117250.0,117240.0,0.04797062]
[1760125956942,1.07494121,117250.0,117240.0,0.00015062]
[1760125957184,0.28045879,117250.0,117240.0,0.11123062]
[1760125957397,0.12029879,117250.0,117240.0,0.37425086]
[1760125957609,0.36933879,117250.0,117240.0,0.20366062]
[1760125958267,0.03141879,117250.0,117240.0,0.20366062]
[1760125958486,0.36933879,117250.0,117240.0,0.20366062]
[1760125958688,0.28045879,117250.0,117240.0,0.20366062]
[1760125958901,0.36933879,117250.0,117240.0,0.20366062]
[1760125959315,0.03141879,117250.0,117240.0,0.20366062]
[1760125959535,0.36933879,117250.0,117240.0,0.20366062]
[1760125959750,0.03141879,117250.0,117240.0,0.20366062]
[1760125959956,0.36933879,117250.0,117240.0,0.20366062]
[1760125960163,0.37933879,117250.0,117240.0,0.20366062]
[1760125960585,0.012,117250.0,117240.0,0.41645935]
[1760125960863,0.0002,117270.0,117260.0,0.17056114]
[1760125961067,0.2492,117270.0,117260.0,0.37407114]
[1760125961289,0.0002,117270.0,117260.0,0.4570912]
[1760125961486,0.0002,117270.0,117260.0,1.26176241]
[1760125961694,0.0002,117270.0,117260.0,1.37503637]
[1760125962112,0.0002,117270.0,117260.0,0.91036516]
[1760125962343,0.0002,117270.0,117260.0,1.96403637]
[1760125962532,0.02287032,117280.0,117270.0,1.00536971]
[1760125962741,0.02287032,117280.0,117270.0,1.24951629]
[1760125962947,0.02287032,117280.0,117270.0,1.31277629]
[1760125963150,0.02287032,117280.0,117270.0,1.65277629]
[1760125963354,0.02287032,117280.0,117270.0,1.65077629]
[1760125963992,0.02287032,117290.0,117280.0,0.20068396]
[1760125964185,0.02287032,117290.0,117280.0,0.44640245]
[1760125964388,0.21004,117300.0,117290.0,0.17051752]
[1760125964591,0.21004,117300.0,117290.0,0.28159752]
[1760125964830,0.27505869,117300.0,117290.0,0.37402752]
[1760125965230,0.02609869,117300.0,117290.0,0.37417814]
[1760125965371,0.27505869,117300.0,117290.0,0.4406672]
[1760125965572,0.02609869,117300.0,117290.0,0.4406672]
[1760125965767,0.27505869,117300.0,117290.0,0.4406672]
[1760125965983,0.02609869,117300.0,117290.0,0.4406672]
[1760125966185,0.27501869,117300.0,117290.0,0.4406672]
[1760125966395,0.02609869,117300.0,117290.0,0.4406672]
[1760125967478,0.02609869,117300.0,117290.0,0.37417814]
[1760125967479,0.03609869,117300.0,117290.0,0.37417814]
[1760125967609,0.28501869,117300.0,117290.0,0.37417814]
[1760125967826,0.3112237,117300.0,117290.0,0.37417814]
[1760125968562,0.37216637,117300.0,117290.0,0.37417814]
[1760125969116,1.17683758,117300.0,117290.0,0.11123062]
[1760125969489,1.18618758,117300.0,117290.0,0.04797062]
[1760125969709,1.86642758,117300.0,117270.0,0.04782]
[1760125969949,0.84522121,117280.0,117270.0,0.04797075]
[1760125970174,1.26215713,117280.0,117270.0,0.04797075]
[1760125970421,1.95175713,117280.0,117270.0,0.00015075]
[1760125970674,5.39,117270.0,117250.0,0.04503]
[1760125970942,5.39,117270.0,117250.0,0.00015077]
[1760125970943,1.05355121,117260.0,117250.0,0.00015077]
[1760125971191,1.76142446,117260.0,117250.0,0.00015077]
[1760125971395,1.76142446,117260.0,117230.0,0.11122503]
[1760125971396,0.34,117250.0,117220.0,0.04503]
[1760125971614,1.11443881,117240.0,117230.0,0.04503]
[1760125971842,0.38444805,117240.0,117230.0,0.04503]
[1760125972049,0.39470805,117240.0,117220.0,0.21579926]
[1760125972276,0.08884,117230.0,117220.0,0.04518092]
[1760125972495,0.35599325,117230.0,117220.0,0.10773092]
[1760125973140,0.33772,117230.0,117220.0,0.04518092]
[1760125973354,0.33772,117230.0,117220.0,0.00015092]
[1760125973355,0.7895857,117230.0,117220.0,0.00015092]
[1760125973580,1.51001446,117230.0,117220.0,0.00015092]
[1760125973830,1.57310017,117230.0,117220.0,0.00015092]
[1760125974041,6.95565446,117230.0,117220.0,0.00015092]
[1760125974253,6.26253446,117230.0,117220.0,0.00015092]
[1760125974463,6.95565446,117230.0,117220.0,0.00015092]
[1760125974672,7.03989691,117230.0,117220.0,0.00015092]
[1760125974902,6.95565446,117230.0,117220.0,0.00015092]
[1760125975127,7.18714685,117230.0,117220.0,0.00015092]
[1760125975354,7.51729875,117230.0,117220.0,0.00015092]
[1760125975566,7.47228392,117230.0,117220.0,0.00015092]
[1760125975778,7.47228385,117230.0,117220.0,0.00015092]
[1760125975993,7.5565263,117230.0,117220.0,0.00015092]
[1760125976259,7.9130063,117230.0,117220.0,0.00015092]
[1760125976483,7.98920699,117230.0,117220.0,0.00015092]
[1760125976894,7.93867728,117230.0,117220.0,0.00015092]
[1760125977101,7.94661305,117230.0,117220.0,0.00015092]
[1760125977331,0.6,117200.0,117180.0,0.04503]
[1760125977642,1.20578962,117190.0,117180.0,0.04553365]
[1760125977865,1.22406287,117190.0,117180.0,0.04553365]
[1760125978071,0.88634287,117190.0,117180.0,0.04553365]
[1760125978270,0.08167166,117190.0,117180.0,0.04553365]
[1760125978491,1.22410287,117190.0,117180.0,0.04553365]
[1760125978696,0.39658325,117190.0,117180.0,0.04553365]
[1760125979535,0.39662325,117190.0,117180.0,0.15121266]
[1760125979904,0.35727325,117190.0,117180.0,0.41681025]
[1760125980102,0.339,117190.0,117180.0,0.41681025]
[1760125980308,0.339,117190.0,117180.0,0.24613266]
[1760125980514,0.339,117190.0,117180.0,0.10906365]
[1760125980817,0.339,117190.0,117180.0,0.00050365]
[1760125980818,1.21144446,117190.0,117180.0,0.00050365]
[1760125981189,1.21193446,117190.0,117180.0,0.00050365]
[1760125981390,1.55193446,117190.0,117180.0,0.00050365]
[1760125981602,1.46305446,117190.0,117180.0,0.00050365]
[1760125981793,1.12276419,117190.0,117180.0,0.00050365]
[1760125981997,1.93207295,117190.0,117180.0,0.00050365]
[1760125982454,1.93256295,117190.0,117180.0,0.00050365]
[1760125982626,7.00541136,117190.0,117180.0,0.00050365]
[1760125983188,5.48453174,117190.0,117180.0,0.00050365]
[1760125983385,7.00542782,117190.0,117180.0,0.00050365]
[1760125983615,6.91654782,117190.0,117180.0,0.00050365]
[1760125983846,6.91654782,117190.0,117180.0,0.04747365]
[1760125983847,0.74010174,117190.0,117180.0,0.04747365]
[1760125984086,1.07790174,117190.0,117180.0,0.04747365]
[1760125984286,0.38454174,117190.0,117180.0,0.04747365]
[1760125984493,0.11514849,117190.0,117180.0,0.37660124]
[1760125984695,0.36410849,117190.0,117180.0,0.37660124]
[1760125984906,0.36410849,117190.0,117180.0,0.04747365]
[1760125985121,1.1781297,117190.0,117180.0,0.00050365]
[1760125985324,1.19638412,117190.0,117180.0,0.00050365]